[Event "Early-Titled-Tuesday-Blitz-September-05-2023"]
[Site "Chess.com"]
[Date "2023.09.05"]
[Round "3"]
[White "Manukyan_Artak"]
[Black "DefiantChair"]
[Result "0-1"]
[WhiteElo "2448"]
[BlackElo "2636"]
[TimeControl "180+1"]
[EndTime "8:28:52 PDT"]
[Termination "DefiantChair won by resignation"]

1. e4 {[%clk 0:03:00.9]} 1... c5 {[%clk 0:02:59]} 2. Nf3 {[%clk 0:03:00.8]} 2...
d6 {[%clk 0:02:58.3]} 3. Bb5+ {[%clk 0:02:59.6]} 3... Nd7 {[%clk 0:02:57.8]} 4.
O-O {[%clk 0:02:50.5]} 4... a6 {[%clk 0:02:43.9]} 5. Bd3 {[%clk 0:02:46.4]} 5...
Ngf6 {[%clk 0:02:40.2]} 6. Re1 {[%clk 0:02:46]} 6... g6 {[%clk 0:02:38.8]} 7. a4
{[%clk 0:02:39.5]} 7... Bg7 {[%clk 0:02:38.2]} 8. c3 {[%clk 0:02:38.3]} 8... Ne5
{[%clk 0:02:34.9]} 9. Nxe5 {[%clk 0:02:19.7]} 9... dxe5 {[%clk 0:02:34]} 10. Bc4
{[%clk 0:02:20.3]} 10... O-O {[%clk 0:02:32.4]} 11. d3 {[%clk 0:02:18.5]} 11...
Bd7 {[%clk 0:02:30.8]} 12. Be3 {[%clk 0:02:11.4]} 12... Qc7 {[%clk 0:02:22.6]}
13. a5 {[%clk 0:02:01.6]} 13... Bb5 {[%clk 0:01:55.6]} 14. Nd2 {[%clk
0:01:59.7]} 14... Rfd8 {[%clk 0:01:49.2]} 15. Qb3 {[%clk 0:01:54.9]} 15... Bxc4
{[%clk 0:01:43.6]} 16. Qxc4 {[%clk 0:01:54.7]} 16... Rac8 {[%clk 0:01:32.7]} 17.
Nb3 {[%clk 0:01:54.6]} 17... Nd7 {[%clk 0:01:28.8]} 18. Rad1 {[%clk 0:01:45.7]}
18... Qc6 {[%clk 0:01:23]} 19. Qd5 {[%clk 0:01:31.6]} 19... e6 {[%clk
0:01:07.4]} 20. Qxc6 {[%clk 0:01:31]} 20... Rxc6 {[%clk 0:01:07.9]} 21. Nd2
{[%clk 0:01:25.5]} 21... Nb8 {[%clk 0:00:52.1]} 22. Nc4 {[%clk 0:01:24.5]} 22...
f6 {[%clk 0:00:48.3]} 23. Kf1 {[%clk 0:01:19.4]} 23... Kf7 {[%clk 0:00:47.7]}
24. Ke2 {[%clk 0:01:19.4]} 24... Bf8 {[%clk 0:00:36.5]} 25. Ra1 {[%clk
0:01:18.3]} 25... Rc7 {[%clk 0:00:31.8]} 26. Ra3 {[%clk 0:01:17.8]} 26... Nc6
{[%clk 0:00:31.3]} 27. Rb3 {[%clk 0:01:18]} 27... Na7 {[%clk 0:00:24.9]} 28. Rb6
{[%clk 0:01:12.2]} 28... Nc8 {[%clk 0:00:20.7]} 29. Rb3 {[%clk 0:01:12]} 29...
Rcd7 {[%clk 0:00:20.4]} 30. Rd1 {[%clk 0:01:11.7]} 30... Rc7 {[%clk 0:00:19.5]}
31. Ra1 {[%clk 0:01:06.1]} 31... Na7 {[%clk 0:00:20.1]} 32. Rb6 {[%clk
0:01:01.5]} 32... Nc6 {[%clk 0:00:20.1]} 33. f3 {[%clk 0:00:51.7]} 33... Na7
{[%clk 0:00:18]} 34. Rb3 {[%clk 0:00:47.1]} 34... h5 {[%clk 0:00:16.5]} 35. Rba3
{[%clk 0:00:42.9]} 35... Nb5 {[%clk 0:00:15.2]} 36. R3a2 {[%clk 0:00:42.5]}
36... Bg7 {[%clk 0:00:15.3]} 37. Rd1 {[%clk 0:00:41.8]} 37... f5 {[%clk
0:00:15.6]} 38. Na3 {[%clk 0:00:38.4]} 38... f4 {[%clk 0:00:16.1]} 39. Nxb5
{[%clk 0:00:36.1]} 39... axb5 {[%clk 0:00:16.7]} 40. Bf2 {[%clk 0:00:36.3]}
40... Ra8 {[%clk 0:00:16.8]} 41. Rda1 {[%clk 0:00:34]} 41... Ra6 {[%clk
0:00:16.7]} 42. Kd2 {[%clk 0:00:33]} 42... Bf8 {[%clk 0:00:16.4]} 43. Kc2 {[%clk
0:00:32.7]} 43... g5 {[%clk 0:00:16.7]} 44. h3 {[%clk 0:00:32.2]} 44... Bd6
{[%clk 0:00:16.6]} 45. c4 {[%clk 0:00:27.8]} 45... b4 {[%clk 0:00:14.7]} 46. Kb3
{[%clk 0:00:27.4]} 46... Bf8 {[%clk 0:00:14.1]} 47. Ka4 {[%clk 0:00:24.7]} 47...
Rc8 {[%clk 0:00:13.7]} 48. Kb5 {[%clk 0:00:25]} 48... Kg6 {[%clk 0:00:10]} 49.
Ra4 {[%clk 0:00:22.8]} 49... g4 {[%clk 0:00:09.7]} 50. hxg4 {[%clk 0:00:21.5]}
50... hxg4 {[%clk 0:00:09.7]} 51. Rh1 {[%clk 0:00:20.1]} 51... g3 {[%clk
0:00:09.7]} 52. Bg1 {[%clk 0:00:19.9]} 52... Bd6 {[%clk 0:00:09]} 53. b3 {[%clk
0:00:17.6]} 53... Rac6 {[%clk 0:00:07.4]} 54. a6 {[%clk 0:00:15.4]} 54... bxa6+
{[%clk 0:00:08.3]} 55. Rxa6 {[%clk 0:00:15.8]} 55... Rxa6 {[%clk 0:00:08.7]} 56.
Kxa6 {[%clk 0:00:15.7]} 56... Ra8+ {[%clk 0:00:08.9]} 57. Kb5 {[%clk 0:00:16.1]}
57... Ra1 {[%clk 0:00:08.7]} 58. Bxc5 {[%clk 0:00:16.2]} 58... Rxh1 {[%clk
0:00:07.8]} 59. Bxd6 {[%clk 0:00:17.1]} 59... Rh2 {[%clk 0:00:07.2]} 60. Bxe5
{[%clk 0:00:17.6]} 60... Kg5 {[%clk 0:00:07.2]} 61. Bxf4+ {[%clk 0:00:18.3]}
61... Kxf4 {[%clk 0:00:07.1]} 62. c5 {[%clk 0:00:17.8]} 62... Rxg2 {[%clk
0:00:06.9]} 63. c6 {[%clk 0:00:18.7]} 63... Rc2 {[%clk 0:00:07.2]} 64. d4 {[%clk
0:00:19.5]} 64... g2 {[%clk 0:00:08.1]} 65. d5 {[%clk 0:00:20.2]} 65... g1=Q
{[%clk 0:00:08.6]} 0-1

[Event "Early-Titled-Tuesday-Blitz-September-05-2023"]
[Site "Chess.com"]
[Date "2023.09.05"]
[Round "3"]
[White "Andrei_Belozerov"]
[Black "esrosenberg"]
[Result "1-0"]
[WhiteElo "2619"]
[BlackElo "2395"]
[TimeControl "180+1"]
[EndTime "8:28:54 PDT"]
[Termination "Andrei_Belozerov won on time"]

1. d4 {[%clk 0:03:00.9]} 1... d5 {[%clk 0:03:00.2]} 2. c4 {[%clk 0:03:00.6]}
2... e6 {[%clk 0:03:00.3]} 3. Nf3 {[%clk 0:03:00.4]} 3... c5 {[%clk 0:03:01.1]}
4. cxd5 {[%clk 0:02:59.5]} 4... exd5 {[%clk 0:03:00.9]} 5. g3 {[%clk 0:02:59.3]}
5... Nf6 {[%clk 0:03:00.6]} 6. Bg2 {[%clk 0:02:59.2]} 6... Be7 {[%clk
0:03:00.7]} 7. O-O {[%clk 0:02:58.9]} 7... O-O {[%clk 0:03:00.7]} 8. b3 {[%clk
0:02:58.4]} 8... Nc6 {[%clk 0:02:59.4]} 9. Bb2 {[%clk 0:02:58.5]} 9... Bf5
{[%clk 0:02:54.1]} 10. Nc3 {[%clk 0:02:58]} 10... Rc8 {[%clk 0:02:50.3]} 11. Rc1
{[%clk 0:02:57.6]} 11... h6 {[%clk 0:02:49.7]} 12. dxc5 {[%clk 0:02:54]} 12...
Bxc5 {[%clk 0:02:46.6]} 13. Na4 {[%clk 0:02:54]} 13... Be7 {[%clk 0:02:44.7]}
14. Nd4 {[%clk 0:02:53.9]} 14... Bg4 {[%clk 0:02:32.3]} 15. h3 {[%clk
0:02:43.4]} 15... Nxd4 {[%clk 0:02:29]} 16. hxg4 {[%clk 0:02:38.4]} 16... Rxc1
{[%clk 0:02:28.4]} 17. Bxc1 {[%clk 0:02:34.4]} 17... Ne6 {[%clk 0:02:23.6]} 18.
Nc3 {[%clk 0:02:23.1]} 18... d4 {[%clk 0:02:17.7]} 19. Nb5 {[%clk 0:01:42.7]}
19... a6 {[%clk 0:02:16.2]} 20. Na3 {[%clk 0:01:40.6]} 20... b5 {[%clk
0:02:12.7]} 21. Nc2 {[%clk 0:01:32.7]} 21... Nxg4 {[%clk 0:02:11.6]} 22. e3
{[%clk 0:01:30.3]} 22... d3 {[%clk 0:02:08.8]} 23. Qxg4 {[%clk 0:01:19.9]} 23...
dxc2 {[%clk 0:02:08.8]} 24. Be4 {[%clk 0:01:19.2]} 24... Qc8 {[%clk 0:01:40.3]}
25. Bb2 {[%clk 0:01:12.8]} 25... Ng5 {[%clk 0:01:37.1]} 26. Bf5 {[%clk
0:01:11.8]} 26... Qc6 {[%clk 0:01:28.3]} 27. Rc1 {[%clk 0:00:50.2]} 27... Nf3+
{[%clk 0:01:20.9]} 28. Kh1 {[%clk 0:00:48.6]} 28... Ne5+ {[%clk 0:01:06.6]} 29.
Qe4 {[%clk 0:00:47.6]} 29... Qxe4+ {[%clk 0:01:05.7]} 30. Bxe4 {[%clk
0:00:47.9]} 30... Ng4 {[%clk 0:01:03]} 31. Rxc2 {[%clk 0:00:42.9]} 31... Bf6
{[%clk 0:00:59]} 32. Ba3 {[%clk 0:00:42.7]} 32... Re8 {[%clk 0:00:58.3]} 33. Bb7
{[%clk 0:00:39]} 33... a5 {[%clk 0:00:58.4]} 34. Kg1 {[%clk 0:00:32.9]} 34... b4
{[%clk 0:00:58.2]} 35. Bc1 {[%clk 0:00:32.4]} 35... Ne5 {[%clk 0:00:56.8]} 36.
Kg2 {[%clk 0:00:25.9]} 36... Nd3 {[%clk 0:00:52.2]} 37. Bd2 {[%clk 0:00:25.9]}
37... g6 {[%clk 0:00:42.2]} 38. Ba6 {[%clk 0:00:25.4]} 38... Rd8 {[%clk
0:00:37.6]} 39. Kf3 {[%clk 0:00:22.8]} 39... Ne5+ {[%clk 0:00:33.6]} 40. Ke2
{[%clk 0:00:22.7]} 40... Be7 {[%clk 0:00:24.3]} 41. Rc7 {[%clk 0:00:19.1]} 41...
Rd7 {[%clk 0:00:22.9]} 42. Rxd7 {[%clk 0:00:16.3]} 42... Nxd7 {[%clk 0:00:23.7]}
43. Bb5 {[%clk 0:00:14.7]} 43... Ne5 {[%clk 0:00:22.1]} 44. f4 {[%clk
0:00:14.3]} 44... Ng4 {[%clk 0:00:21.7]} 45. e4 {[%clk 0:00:14.3]} 45... Kf8
{[%clk 0:00:21.5]} 46. e5 {[%clk 0:00:14.2]} 46... h5 {[%clk 0:00:21.9]} 47. Kf3
{[%clk 0:00:14]} 47... Nh2+ {[%clk 0:00:20.7]} 48. Ke4 {[%clk 0:00:12.1]} 48...
h4 {[%clk 0:00:19.8]} 49. gxh4 {[%clk 0:00:11.8]} 49... Bxh4 {[%clk 0:00:20.1]}
50. Be3 {[%clk 0:00:11.7]} 50... Bd8 {[%clk 0:00:19.1]} 51. Bc5+ {[%clk
0:00:11.5]} 51... Kg7 {[%clk 0:00:18.9]} 52. Be2 {[%clk 0:00:10.3]} 52... f5+
{[%clk 0:00:16.8]} 53. exf6+ {[%clk 0:00:09.9]} 53... Kxf6 {[%clk 0:00:16.9]}
54. Bg1 {[%clk 0:00:09.8]} 54... a4 {[%clk 0:00:07.9]} 55. Bxh2 {[%clk
0:00:08.4]} 55... axb3 {[%clk 0:00:08.8]} 56. axb3 {[%clk 0:00:08.4]} 56... Bc7
{[%clk 0:00:09.4]} 57. Bg1 {[%clk 0:00:07.4]} 57... Bd6 {[%clk 0:00:09.3]} 58.
Bd4+ {[%clk 0:00:07.3]} 58... Ke6 {[%clk 0:00:08.3]} 59. Bc4+ {[%clk 0:00:07.4]}
59... Ke7 {[%clk 0:00:08.2]} 60. Be5 {[%clk 0:00:07.5]} 60... Bc5 {[%clk
0:00:08.5]} 61. Kf3 {[%clk 0:00:07.4]} 61... Bg1 {[%clk 0:00:07.5]} 62. Kg4
{[%clk 0:00:07.5]} 62... Bh2 {[%clk 0:00:08.1]} 63. Kg5 {[%clk 0:00:07.6]} 63...
Bxf4+ {[%clk 0:00:06.3]} 64. Bxf4 {[%clk 0:00:07.4]} 64... Kd7 {[%clk
0:00:05.6]} 65. Bd2 {[%clk 0:00:07.7]} 65... Kc6 {[%clk 0:00:06.5]} 66. Bxb4
{[%clk 0:00:08.3]} 1-0

[Event "Early-Titled-Tuesday-Blitz-September-05-2023"]
[Site "Chess.com"]
[Date "2023.09.05"]
[Round "3"]
[White "Quattroporte300"]
[Black "angryspacevoid"]
[Result "0-1"]
[WhiteElo "2411"]
[BlackElo "2603"]
[TimeControl "180+1"]
[EndTime "8:28:56 PDT"]
[Termination "angryspacevoid won on time"]

1. e4 {[%clk 0:03:00.9]} 1... c6 {[%clk 0:02:56.2]} 2. d4 {[%clk 0:03:00.5]}
2... d5 {[%clk 0:02:56.7]} 3. exd5 {[%clk 0:03:00.9]} 3... cxd5 {[%clk
0:02:56.6]} 4. Bd3 {[%clk 0:03:01.5]} 4... Nc6 {[%clk 0:02:55.8]} 5. c3 {[%clk
0:03:02]} 5... Nf6 {[%clk 0:02:54.4]} 6. Bf4 {[%clk 0:03:01.6]} 6... g6 {[%clk
0:02:49.1]} 7. Nd2 {[%clk 0:03:00.1]} 7... Bg7 {[%clk 0:02:49.5]} 8. Ngf3 {[%clk
0:02:57.8]} 8... O-O {[%clk 0:02:49.7]} 9. O-O {[%clk 0:02:58.3]} 9... Nh5
{[%clk 0:02:43.5]} 10. Bg5 {[%clk 0:02:53.8]} 10... h6 {[%clk 0:02:41.8]} 11.
Bh4 {[%clk 0:02:53.1]} 11... f5 {[%clk 0:02:32.5]} 12. Ne1 {[%clk 0:02:14.5]}
12... Nf4 {[%clk 0:02:06.4]} 13. Bg3 {[%clk 0:02:05.9]} 13... Nxd3 {[%clk
0:01:57]} 14. Nxd3 {[%clk 0:02:06.8]} 14... g5 {[%clk 0:01:25]} 15. f4 {[%clk
0:02:03.6]} 15... Qe8 {[%clk 0:01:24.8]} 16. Nf3 {[%clk 0:01:58.1]} 16... g4
{[%clk 0:01:19.6]} 17. Nfe5 {[%clk 0:01:57.5]} 17... Nxe5 {[%clk 0:01:16.8]} 18.
fxe5 {[%clk 0:01:51.6]} 18... e6 {[%clk 0:01:09.8]} 19. Qd2 {[%clk 0:01:49]}
19... b6 {[%clk 0:01:07.3]} 20. h3 {[%clk 0:01:42.3]} 20... gxh3 {[%clk
0:01:04.7]} 21. gxh3 {[%clk 0:01:42.2]} 21... Ba6 {[%clk 0:00:57.7]} 22. Kh2
{[%clk 0:01:39.6]} 22... Kh7 {[%clk 0:00:45.9]} 23. Rf2 {[%clk 0:01:39.1]} 23...
Rg8 {[%clk 0:00:45.4]} 24. Nf4 {[%clk 0:01:34.6]} 24... Qf7 {[%clk 0:00:23.4]}
25. Rg1 {[%clk 0:01:33.5]} 25... Bf8 {[%clk 0:00:22]} 26. Qd1 {[%clk 0:01:30.9]}
26... Be7 {[%clk 0:00:20.2]} 27. Qf3 {[%clk 0:01:22.6]} 27... Rg5 {[%clk
0:00:17.9]} 28. Rfg2 {[%clk 0:01:15.3]} 28... Rag8 {[%clk 0:00:16.3]} 29. Bf2
{[%clk 0:00:58.6]} 29... Rxg2+ {[%clk 0:00:14.5]} 30. Rxg2 {[%clk 0:00:58.4]}
30... Rxg2+ {[%clk 0:00:14.4]} 31. Qxg2 {[%clk 0:00:55.3]} 31... Bg5 {[%clk
0:00:14.4]} 32. Qf3 {[%clk 0:00:31.5]} 32... Bxf4+ {[%clk 0:00:10.2]} 33. Qxf4
{[%clk 0:00:31.8]} 33... Qh5 {[%clk 0:00:10.6]} 34. Qe3 {[%clk 0:00:23.1]} 34...
Qd1 {[%clk 0:00:07.4]} 35. Bh4 {[%clk 0:00:21.9]} 35... Bd3 {[%clk 0:00:06.7]}
36. Qg1 {[%clk 0:00:15.6]} 36... Qe2+ {[%clk 0:00:06.1]} 37. Qf2 {[%clk
0:00:15]} 37... Qe4 {[%clk 0:00:04.2]} 38. Bf6 {[%clk 0:00:12.2]} 38... f4
{[%clk 0:00:03]} 39. Qg2 {[%clk 0:00:10.7]} 39... Qxg2+ {[%clk 0:00:02.9]} 40.
Kxg2 {[%clk 0:00:11]} 40... Be4+ {[%clk 0:00:03.5]} 41. Kf2 {[%clk 0:00:11]}
41... Kg6 {[%clk 0:00:04.1]} 42. a3 {[%clk 0:00:07.3]} 42... b5 {[%clk
0:00:04.3]} 43. b4 {[%clk 0:00:06.4]} 43... a6 {[%clk 0:00:04.3]} 44. Bd8 {[%clk
0:00:06.9]} 44... Kf5 {[%clk 0:00:03.7]} 45. Bf6 {[%clk 0:00:06.9]} 45... Bd3
{[%clk 0:00:04]} 46. Bg7 {[%clk 0:00:07.4]} 46... h5 {[%clk 0:00:03.9]} 47. Bh6
{[%clk 0:00:07.4]} 47... Ke4 {[%clk 0:00:04.2]} 48. Bg5 {[%clk 0:00:08]} 48...
Bc4 {[%clk 0:00:03.5]} 49. Bh6 {[%clk 0:00:08.2]} 49... f3 {[%clk 0:00:03.3]}
50. Bd2 {[%clk 0:00:05]} 50... Be2 {[%clk 0:00:04.2]} 51. Be1 {[%clk 0:00:05.1]}
51... Kd3 {[%clk 0:00:04.8]} 52. Kg3 {[%clk 0:00:05.4]} 52... Kc2 {[%clk
0:00:05]} 53. Kh4 {[%clk 0:00:04.5]} 53... Kb3 {[%clk 0:00:05.2]} 54. Bf2 {[%clk
0:00:04.3]} 54... Kxa3 {[%clk 0:00:05.6]} 55. Kxh5 {[%clk 0:00:04.9]} 55... Kb3
{[%clk 0:00:06.2]} 56. Kg5 {[%clk 0:00:04.5]} 56... Bd3 {[%clk 0:00:06.1]} 57.
Be1 {[%clk 0:00:03.5]} 57... Kc2 {[%clk 0:00:05.5]} 58. h4 {[%clk 0:00:04]}
58... Kd1 {[%clk 0:00:05.8]} 59. Bg3 {[%clk 0:00:04.2]} 59... Ke2 {[%clk
0:00:05.9]} 60. h5 {[%clk 0:00:04.4]} 60... f2 {[%clk 0:00:06.4]} 61. Bxf2
{[%clk 0:00:04.7]} 61... Kxf2 {[%clk 0:00:07.3]} 62. Kf6 {[%clk 0:00:04.8]}
62... Bf5 {[%clk 0:00:06.9]} 63. h6 {[%clk 0:00:04.2]} 63... Ke3 {[%clk
0:00:07]} 64. h7 {[%clk 0:00:04.9]} 64... Bxh7 {[%clk 0:00:07]} 65. Kxe6 {[%clk
0:00:05.7]} 65... Bg8+ {[%clk 0:00:06.2]} 66. Kd6 {[%clk 0:00:05.9]} 66... Kd3
{[%clk 0:00:06.7]} 67. e6 {[%clk 0:00:05.9]} 67... Kxc3 {[%clk 0:00:07]} 68. e7
{[%clk 0:00:06]} 68... Bf7 {[%clk 0:00:06.9]} 69. Kd7 {[%clk 0:00:05.6]} 69...
Kxd4 {[%clk 0:00:06.2]} 0-1

[Event "Early-Titled-Tuesday-Blitz-September-05-2023"]
[Site "Chess.com"]
[Date "2023.09.05"]
[Round "3"]
[White "Srisshhhtea"]
[Black "viktorskliarov"]
[Result "1/2-1/2"]
[WhiteElo "2414"]
[BlackElo "2661"]
[TimeControl "180+1"]
[EndTime "8:29:00 PDT"]
[Termination "Game drawn by repetition"]

1. e4 {[%clk 0:03:00.9]} 1... c5 {[%clk 0:02:58.9]} 2. Nf3 {[%clk 0:03:00.3]}
2... Nc6 {[%clk 0:02:59]} 3. d4 {[%clk 0:02:59.8]} 3... cxd4 {[%clk 0:02:59.2]}
4. Nxd4 {[%clk 0:03:00.7]} 4... g6 {[%clk 0:02:58.1]} 5. c4 {[%clk 0:02:59.8]}
5... Bg7 {[%clk 0:02:57.8]} 6. Be3 {[%clk 0:03:00.1]} 6... Nf6 {[%clk
0:02:57.5]} 7. Nc3 {[%clk 0:02:59.8]} 7... Ng4 {[%clk 0:02:55.1]} 8. Qxg4 {[%clk
0:02:59.9]} 8... Nxd4 {[%clk 0:02:53.2]} 9. Qd1 {[%clk 0:03:00.5]} 9... Ne6
{[%clk 0:02:52.2]} 10. Rc1 {[%clk 0:03:00.9]} 10... O-O {[%clk 0:02:47]} 11. Be2
{[%clk 0:03:00.1]} 11... d6 {[%clk 0:02:45.4]} 12. O-O {[%clk 0:03:00]} 12...
Bd7 {[%clk 0:02:42.6]} 13. Qd2 {[%clk 0:02:59.6]} 13... a5 {[%clk 0:02:38]} 14.
Nd5 {[%clk 0:02:57.2]} 14... Nc5 {[%clk 0:02:33.2]} 15. f3 {[%clk 0:02:56.1]}
15... a4 {[%clk 0:02:28.8]} 16. Rfd1 {[%clk 0:02:56.3]} 16... Bc6 {[%clk
0:02:17.1]} 17. Bg5 {[%clk 0:02:28.2]} 17... Bxd5 {[%clk 0:02:15.7]} 18. exd5
{[%clk 0:02:26.7]} 18... Qb6 {[%clk 0:02:08.9]} 19. Kh1 {[%clk 0:02:18.5]} 19...
Qxb2 {[%clk 0:02:01.9]} 20. Bxe7 {[%clk 0:02:11.3]} 20... Rfe8 {[%clk
0:01:37.4]} 21. Rc2 {[%clk 0:02:00.1]} 21... Qxc2 {[%clk 0:01:16.5]} 22. Qxc2
{[%clk 0:01:58.3]} 22... Rxe7 {[%clk 0:01:16.8]} 23. f4 {[%clk 0:01:53]} 23...
Rae8 {[%clk 0:01:15.5]} 24. Bf1 {[%clk 0:01:49.4]} 24... Re1 {[%clk 0:01:07.8]}
25. Kg1 {[%clk 0:01:49.1]} 25... Bh6 {[%clk 0:00:52.3]} 26. g3 {[%clk
0:01:43.9]} 26... Bg7 {[%clk 0:00:51.3]} 27. Kf2 {[%clk 0:01:38.2]} 27... Rxd1
{[%clk 0:00:51.3]} 28. Qxd1 {[%clk 0:01:39.1]} 28... Bc3 {[%clk 0:00:48.2]} 29.
Bh3 {[%clk 0:01:18.6]} 29... Kg7 {[%clk 0:00:41]} 30. f5 {[%clk 0:01:12.1]}
30... a3 {[%clk 0:00:28.7]} 31. fxg6 {[%clk 0:01:09.4]} 31... hxg6 {[%clk
0:00:28.3]} 32. Bg2 {[%clk 0:01:04.3]} 32... Bb2 {[%clk 0:00:22.6]} 33. h4
{[%clk 0:01:02.3]} 33... Re5 {[%clk 0:00:22.6]} 34. Bf3 {[%clk 0:01:00.2]} 34...
Ne4+ {[%clk 0:00:22.1]} 35. Bxe4 {[%clk 0:00:56.4]} 35... Rxe4 {[%clk
0:00:22.7]} 36. Qd3 {[%clk 0:00:56.6]} 36... Re7 {[%clk 0:00:20.8]} 37. g4
{[%clk 0:00:53.9]} 37... b6 {[%clk 0:00:19.6]} 38. Kf3 {[%clk 0:00:50.2]} 38...
Bf6 {[%clk 0:00:17.2]} 39. g5 {[%clk 0:00:49.4]} 39... Bb2 {[%clk 0:00:17.1]}
40. Qb3 {[%clk 0:00:49.3]} 40... Re1 {[%clk 0:00:13.6]} 41. Qxb6 {[%clk
0:00:47]} 41... Be5 {[%clk 0:00:13.8]} 42. Qb4 {[%clk 0:00:41.7]} 42... Rh1
{[%clk 0:00:10.6]} 43. c5 {[%clk 0:00:25.7]} 43... Rh3+ {[%clk 0:00:07.3]} 44.
Kg2 {[%clk 0:00:23.2]} 44... Rg3+ {[%clk 0:00:06.8]} 45. Kf2 {[%clk 0:00:21.1]}
45... dxc5 {[%clk 0:00:07.4]} 46. Qxc5 {[%clk 0:00:21.2]} 46... Rg4 {[%clk
0:00:07.9]} 47. Kf3 {[%clk 0:00:19.2]} 47... Rf4+ {[%clk 0:00:07.6]} 48. Ke2
{[%clk 0:00:18.7]} 48... Rxh4 {[%clk 0:00:07.9]} 49. d6 {[%clk 0:00:18.9]} 49...
Rh2+ {[%clk 0:00:06]} 50. Kf1 {[%clk 0:00:18.3]} 50... Bxd6 {[%clk 0:00:04.8]}
51. Qxd6 {[%clk 0:00:18.1]} 51... Rxa2 {[%clk 0:00:05.4]} 52. Qe5+ {[%clk
0:00:18.3]} 52... Kg8 {[%clk 0:00:05.9]} 53. Qe8+ {[%clk 0:00:18.5]} 53... Kg7
{[%clk 0:00:06.5]} 54. Qe5+ {[%clk 0:00:18.8]} 54... Kg8 {[%clk 0:00:07.2]} 55.
Qe8+ {[%clk 0:00:17.2]} 55... Kg7 {[%clk 0:00:07.9]} 56. Qa4 {[%clk 0:00:16.5]}
56... Ra1+ {[%clk 0:00:06.6]} 57. Ke2 {[%clk 0:00:16.8]} 57... Rb1 {[%clk
0:00:06.5]} 58. Qxa3 {[%clk 0:00:16]} 58... Rb8 {[%clk 0:00:05.7]} 59. Qc3+
{[%clk 0:00:16.3]} 59... Kg8 {[%clk 0:00:05.8]} 60. Qf6 {[%clk 0:00:16.7]} 60...
Re8+ {[%clk 0:00:05.8]} 61. Kf3 {[%clk 0:00:16.9]} 61... Re6 {[%clk 0:00:06.5]}
62. Qd8+ {[%clk 0:00:17.1]} 62... Kg7 {[%clk 0:00:07.1]} 63. Qd4+ {[%clk
0:00:17.7]} 63... Kg8 {[%clk 0:00:07.6]} 64. Kf4 {[%clk 0:00:18]} 64... Re8
{[%clk 0:00:05.6]} 65. Qd5 {[%clk 0:00:18.2]} 65... Re6 {[%clk 0:00:05.7]} 66.
Qd7 {[%clk 0:00:18.6]} 66... Kg7 {[%clk 0:00:05.7]} 67. Qd4+ {[%clk 0:00:18.9]}
67... Kg8 {[%clk 0:00:06.1]} 68. Qd8+ {[%clk 0:00:18.7]} 68... Kg7 {[%clk
0:00:06.6]} 69. Qd4+ {[%clk 0:00:19.3]} 69... Kg8 {[%clk 0:00:07.1]} 70. Qd8+
{[%clk 0:00:20]} 70... Kg7 {[%clk 0:00:07.6]} 71. Qd4+ {[%clk 0:00:20.7]}
1/2-1/2